lending/lending_fUSD_20251121
["ID","MTS","AMOUNT","RATE_DAILY","PERIOD"]
[394596711,1763747711762,-500.0,0.00052328,120]
[394596712,1763747711797,-987.47,0.00052328,120]
[394596713,1763747711832,-580.14350607,0.00052328,120]
[394596714,1763747712115,-749.7,0.00052328,120]
[394596715,1763747712154,-500.0,0.00052328,120]
[394596716,1763747712193,-510.46874263,0.00052328,120]
[394596717,1763747712230,-500.0,0.00052328,120]
[394596718,1763747712267,-400.0,0.00052328,120]
[394596719,1763747712305,-500.0,0.00052328,120]
[394596720,1763747712343,-516.2196331,0.00052328,120]
[394596721,1763747712380,-500.0,0.00052328,120]
[394596722,1763747712418,-500.0,0.00052328,120]
[394596723,1763747712459,-500.0,0.00052328,120]
[394596724,1763747712504,-409.42025979,0.00052328,120]
[394596725,1763747712542,-500.0,0.00052328,120]
[394596726,1763747712580,-400.0,0.00052328,120]
[394596727,1763747712619,-500.0,0.00052328,120]
[394596728,1763747712656,-757.04,0.00052328,120]
[394596729,1763747712694,-500.0,0.00052328,120]
[394596730,1763747712731,-500.0,0.00052328,120]
[394596731,1763747712770,-500.0,0.00052328,120]
[394596732,1763747712807,-640.53,0.00052328,120]
[394596733,1763747712843,-500.0,0.00052328,120]
[394596734,1763747712886,-500.0,0.00052328,120]
[394596735,1763747712925,-500.0,0.00052328,120]
[394596736,1763747712962,-500.0,0.00052328,120]
[394596737,1763747713000,-606.66,0.00052328,120]
[394596738,1763747713039,-500.0,0.00052328,120]
[394596739,1763747713076,-500.0,0.00052328,120]
[394596740,1763747713114,-500.0,0.00052328,120]
[394596741,1763747713151,-500.0,0.00052328,120]
[394596742,1763747713189,-500.0,0.00052328,120]
[394596743,1763747713225,-500.0,0.00052328,120]
[394596744,1763747713261,-500.0,0.00052328,120]
[394596745,1763747713299,-500.0,0.00052328,120]
[394596746,1763747713337,-500.0,0.00052328,120]
[394596747,1763747713377,-535.22561478,0.00052328,120]
[394596748,1763747713417,-500.0,0.00052328,120]
[394596749,1763747713456,-844.19,0.00052328,120]
[394596750,1763747713507,-939.26,0.00052328,60]
[394596751,1763747713546,-628.80052869,0.00052328,120]
[394596752,1763747713583,-500.0,0.00052328,120]
[394596753,1763747713621,-621.78938733,0.00052328,120]
[394596754,1763747713659,-1476.41,0.00052328,120]
[394596755,1763747713696,-500.0,0.00052328,120]
[394596756,1763747713734,-500.0,0.00052328,120]
[394596757,1763747713771,-885.49,0.00052328,120]
[394596758,1763747713807,-500.0,0.00052328,120]
[394596759,1763747713843,-605.14,0.00052328,120]
[394596760,1763747713881,-500.0,0.00052328,120]
[394596761,1763747713920,-500.0,0.00052328,120]
[394596762,1763747713957,-635.71,0.00052328,120]
[394596763,1763747713995,-500.0,0.00052328,120]
[394596764,1763747714033,-518.58084357,0.00052328,120]
[394596765,1763747714072,-500.0,0.00052328,120]
[394596766,1763747714111,-886.24,0.00052328,120]
[394596767,1763747714149,-973.25,0.00052328,120]
[394596768,1763747714190,-910.07,0.00052328,120]
[394596769,1763747714229,-409.14520981,0.00052328,120]
[394596770,1763747714268,-500.0,0.00052328,120]
[394596771,1763747714307,-348.21117513,0.00052328,120]
[394596772,1763747714348,-903.3,0.00052328,120]
[394596773,1763747714391,-500.0,0.00052328,120]
[394596774,1763747714432,-500.0,0.00052328,120]
[394596775,1763747714481,-500.0,0.00052328,120]
[394596776,1763747714520,-500.0,0.00052328,120]
[394596777,1763747714559,-500.0,0.00052328,120]
[394596778,1763747714599,-500.0,0.00052328,120]
[394596779,1763747714638,-500.0,0.00052328,120]
[394596780,1763747714691,-500.0,0.00052328,120]
[394596781,1763747714731,-500.0,0.00052328,120]
[394596782,1763747714769,-436.07700747,0.00052328,120]
[394596783,1763747714807,-500.0,0.00052328,120]
[394596784,1763747714845,-500.0,0.00052328,120]
[394596785,1763747714885,-500.0,0.00052328,120]
[394596786,1763747714925,-576.47493421,0.00052328,120]
[394596787,1763747714963,-500.0,0.00052328,120]
[394596788,1763747715002,-500.0,0.00052328,120]
[394596789,1763747715039,-377.61557577,0.00052328,120]
[394596790,1763747715076,-500.0,0.00052328,120]
[394596791,1763747715115,-500.0,0.00052328,120]
[394596792,1763747715153,-500.0,0.00052328,120]
[394596793,1763747715194,-500.0,0.00052328,120]
[394596794,1763747715240,-931.08,0.00052328,120]
[394596795,1763747715279,-412.13685476,0.00052328,120]
[394596796,1763747715316,-410.54664705,0.00052328,120]
[394596797,1763747715352,-500.0,0.00052328,120]
[394596798,1763747715390,-500.0,0.00052328,120]
[394596799,1763747715427,-500.0,0.00052328,120]
[394596800,1763747715473,-677.66,0.00052328,120]
[394596801,1763747715511,-500.0,0.00052328,120]
[394596802,1763747715548,-500.0,0.00052328,120]
[394596803,1763747715584,-500.0,0.00052328,120]
[394596804,1763747715622,-500.0,0.00052328,120]
[394596805,1763747715661,-500.0,0.00052328,120]
[394596806,1763747715697,-500.0,0.00052328,120]
[394596807,1763747715734,-500.0,0.00052328,120]
[394596808,1763747715770,-1089.8,0.00052328,120]
[394596809,1763747715806,-600.17,0.00052328,120]
[394596810,1763747715845,-507.14359733,0.00052328,120]
[394596811,1763747715893,-500.0,0.00052328,120]
[394596812,1763747715939,-500.0,0.00052328,120]
[394596813,1763747715984,-409.73554725,0.00052328,120]
[394596814,1763747716022,-495.0,0.00052328,120]
[394596815,1763747716060,-420.7373254,0.00052328,120]
[394596816,1763747716099,-500.0,0.00052328,120]
[394596817,1763747716139,-402.66335307,0.00052328,120]
[394596818,1763747716359,-500.0,0.00052328,120]
[394596819,1763747716399,-500.0,0.00052328,120]
[394596820,1763747716440,-500.0,0.00052328,120]
[394596821,1763747716482,-528.23,0.00052328,120]
[394596822,1763747716525,-500.0,0.00052328,120]
[394596823,1763747716565,-492.42757366,0.00052328,120]
[394596824,1763747716607,-500.0,0.00052328,120]
[394596825,1763747716647,-500.0,0.00052328,120]
[394596826,1763747716688,-638.60879626,0.00052328,120]
[394596827,1763747716731,-896.01,0.00052328,120]
[394596828,1763747716770,-500.0,0.00052328,120]
[394596829,1763747716810,-1060.14,0.00052328,120]
[394596830,1763747716848,-500.0,0.00052328,120]
[394596831,1763747716891,-853.65,0.00052328,120]
[394596832,1763747716935,-500.0,0.00052328,120]
[394596833,1763747716984,-518.42522355,0.00052328,120]
[394596834,1763747717032,-500.0,0.00052328,120]
[394596835,1763747717078,-500.0,0.00052328,120]
[394596836,1763747717120,-405.55429766,0.00052328,120]
[394596837,1763747717160,-601.37886334,0.00052328,120]
[394596838,1763747717199,-500.0,0.00052328,120]
[394596839,1763747717237,-1172.32,0.00052328,120]
[394596840,1763747717275,-500.0,0.00052328,120]
[394596841,1763747717314,-892.68,0.00052328,120]
[394596842,1763747717352,-500.0,0.00052328,120]
[394596843,1763747717390,-500.0,0.00052328,120]
[394596844,1763747717427,-536.88310506,0.00052328,120]
[394596845,1763747717464,-524.45099805,0.00052328,120]
[394596846,1763747717509,-1066.61,0.00052328,120]
[394596847,1763747717547,-683.37,0.00052328,120]
[394596848,1763747717586,-500.0,0.00052328,120]
[394596849,1763747717624,-500.0,0.00052328,120]
[394596850,1763747717663,-518.73087165,0.00052328,120]
[394596851,1763747717700,-500.0,0.00052328,120]
[394596852,1763747717738,-501.14894959,0.00052328,60]
[394596853,1763747717775,-500.0,0.00052328,120]
[394596854,1763747717814,-500.0,0.00052328,120]
[394596855,1763747717852,-1328.68,0.00052328,120]
[394596856,1763747717891,-500.0,0.00052328,120]
[394596857,1763747717928,-542.43070796,0.00052328,120]
[394596858,1763747717965,-500.0,0.00052328,120]
[394596859,1763747718005,-500.0,0.00052328,120]
[394596860,1763747718043,-538.12653961,0.00052328,120]
[394596861,1763747718082,-604.26,0.00052328,120]
[394596862,1763747718120,-893.09,0.00052328,120]
[394596863,1763747718158,-500.0,0.00052328,120]
[394596864,1763747718195,-372.18622727,0.00052328,120]
[394596865,1763747718232,-500.0,0.00052328,120]
[394596866,1763747718270,-500.0,0.00052328,120]
[394596867,1763747718308,-514.08557541,0.00052328,120]
[394596868,1763747718346,-726.62,0.00052328,120]
[394596869,1763747718383,-1129.7,0.00052328,120]
[394596870,1763747718420,-500.0,0.00052328,120]
[394596871,1763747718458,-500.0,0.00052328,120]
[394596872,1763747718503,-500.0,0.00052328,120]
[394596873,1763747718543,-500.0,0.00052328,120]
[394596874,1763747718583,-525.68197857,0.00052328,120]
[394596875,1763747718634,-500.0,0.00052328,120]
[394596876,1763747718689,-560.5226965,0.00052328,120]
[394596877,1763747718746,-500.0,0.00052328,120]
[394596878,1763747718796,-500.0,0.00052328,120]
[394596879,1763747718851,-500.0,0.00052328,120]
[394596880,1763747718910,-500.0,0.00052328,120]
[394596881,1763747718963,-500.0,0.00052328,120]
[394596882,1763747719020,-500.0,0.00052328,120]
[394596883,1763747719070,-500.0,0.00052328,120]
[394596884,1763747719122,-500.0,0.00052328,120]
[394596885,1763747719173,-500.0,0.00052328,120]
[394596886,1763747719218,-500.0,0.00052328,120]
[394596887,1763747719267,-502.19,0.00052328,120]
[394596888,1763747719315,-500.0,0.00052328,120]
[394596889,1763747719363,-500.0,0.00052328,120]
[394596890,1763747719411,-502.42605289,0.00052328,120]
[394596891,1763747719461,-500.0,0.00052328,120]
[394596892,1763747719516,-500.0,0.00052328,120]
[394596893,1763747719567,-742.48,0.00052328,120]
[394596894,1763747719616,-500.0,0.00052328,120]
[394596895,1763747719666,-1058.02,0.00052328,120]
[394596896,1763747719715,-500.0,0.00052328,120]
[394596897,1763747719768,-609.86,0.00052328,120]
[394596898,1763747719818,-500.0,0.00052328,120]
[394596899,1763747719869,-333.56337512,0.00052328,120]
[394596900,1763747719919,-500.0,0.00052328,120]
[394596901,1763747719971,-634.62,0.00052328,120]
[394596902,1763747720026,-500.0,0.00052328,120]
[394596903,1763747720077,-500.0,0.00052328,120]
[394596904,1763747720128,-500.0,0.00052328,120]
[394596905,1763747720178,-500.0,0.00052328,120]
[394596906,1763747720228,-500.0,0.00052328,120]
[394596907,1763747720278,-500.0,0.00052328,120]
[394596908,1763747720324,-500.0,0.00052328,120]
[394596909,1763747720373,-859.12,0.00052328,120]
[394596910,1763747720422,-500.0,0.00052328,120]
[394596911,1763747720471,-500.0,0.00052328,120]
[394596912,1763747720523,-500.0,0.00052328,120]
[394596913,1763747720573,-500.0,0.00052328,120]
[394596914,1763747720622,-500.0,0.00052328,120]
[394596915,1763747720670,-672.89,0.00052328,120]
[394596916,1763747720717,-500.0,0.00052328,120]
[394596917,1763747720766,-500.0,0.00052328,120]
[394596918,1763747720814,-500.0,0.00052328,120]
[394596919,1763747720862,-500.0,0.00052328,120]
[394596920,1763747720909,-398.39167792,0.00052328,120]
[394596921,1763747720956,-500.0,0.00052328,120]
[394596922,1763747721002,-505.3569705,0.00052328,120]
[394596923,1763747721049,-500.0,0.00052328,120]
[394596924,1763747721096,-500.0,0.00052328,120]
[394596925,1763747721143,-500.0,0.00052328,120]
[394596926,1763747721190,-500.0,0.00052328,120]
[394596927,1763747721237,-500.0,0.00052328,120]
[394596928,1763747721285,-500.0,0.00052328,120]
[394596929,1763747721334,-976.07,0.00052328,120]
[394596930,1763747721383,-1102.73,0.00052328,120]
[394596931,1763747721426,-500.0,0.00052328,120]
[394596932,1763747721467,-1200.73,0.00052328,120]
[394596933,1763747721510,-1000.34,0.00052328,120]
[394596934,1763747721907,-500.0,0.00052328,120]
[394596935,1763747721947,-500.0,0.00052328,120]
[394596936,1763747721986,-1155.3,0.00052328,120]
[394596937,1763747722024,-500.0,0.00052328,120]
[394596938,1763747722063,-500.0,0.00052328,120]
[394596939,1763747722102,-1052.15,0.00052328,120]
[394596940,1763747722140,-500.0,0.00052328,120]
[394596941,1763747722177,-760.56,0.00052328,120]
[394596942,1763747722216,-500.0,0.00052328,120]
[394596943,1763747722257,-539.76492707,0.00052328,120]
[394596944,1763747722296,-500.0,0.00052328,120]
[394596945,1763747722336,-500.0,0.00052328,120]
[394596946,1763747722376,-1214.77,0.00052328,120]
[394596947,1763747722416,-500.0,0.00052328,120]
[394596948,1763747722459,-500.0,0.00052328,120]
[394596949,1763747722504,-500.0,0.00052328,120]
[394596950,1763747722546,-500.0,0.00052328,120]
[394596951,1763747722587,-500.0,0.00052328,120]
[394596952,1763747722627,-1106.22,0.00052328,120]
[394596953,1763747722667,-500.0,0.00052328,120]
[394596954,1763747722706,-500.0,0.00052328,120]
[394596955,1763747722747,-500.0,0.00052328,120]
[394596956,1763747722786,-500.0,0.00052328,120]
[394596957,1763747722826,-500.0,0.00052328,120]
[394596958,1763747722865,-500.0,0.00052328,120]
[394596959,1763747722907,-500.0,0.00052328,120]
[394596960,1763747722945,-500.0,0.00052328,120]
[394596961,1763747722986,-500.0,0.00052328,120]
[394596962,1763747723026,-500.0,0.00052328,120]
[394596963,1763747723065,-500.0,0.00052328,120]
[394596964,1763747723106,-500.0,0.00052328,120]
[394596965,1763747723147,-500.0,0.00052328,120]
[394596966,1763747723189,-500.0,0.00052328,120]
[394596967,1763747723229,-500.0,0.00052328,120]
[394596968,1763747723269,-500.0,0.00052328,120]
[394596969,1763747723310,-500.0,0.00052328,120]
[394596970,1763747723363,-335.87370445,0.00052328,120]
[394596971,1763747723428,-500.0,0.00052328,120]
[394596972,1763747723492,-500.0,0.00052328,120]
[394596973,1763747723562,-300.0,0.00052328,120]
[394596974,1763747723629,-500.0,0.00052328,120]
[394596975,1763747723697,-500.0,0.00052328,120]
[394596976,1763747723740,-500.0,0.00052328,120]
[394596977,1763747723781,-172.44705488,0.00052328,120]
[394596978,1763747723821,-500.0,0.00052328,120]
[394596979,1763747723863,-407.21863203,0.00052328,120]
[394596980,1763747723903,-500.0,0.00052328,120]
[394596981,1763747723944,-500.0,0.00052328,120]
[394596982,1763747723986,-417.59868625,0.00052328,120]
[394596983,1763747724026,-517.17482779,0.00052328,120]
[394596984,1763747724068,-473.44046192,0.00052328,120]
[394596985,1763747724112,-306.0920048,0.00052328,120]
[394596986,1763747724156,-500.0,0.00052328,120]
[394596987,1763747724199,-336.06,0.00052328,120]
[394596988,1763747724242,-500.0,0.00052328,120]
[394596989,1763747724279,-500.0,0.00052328,120]
[394596990,1763747724316,-500.0,0.00052328,120]
[394596991,1763747724355,-500.0,0.00052328,120]
[394596992,1763747724394,-500.0,0.00052328,120]
[394596993,1763747724432,-200.0,0.00052328,120]
[394596994,1763747724473,-496.3910538,0.00052328,120]
[394596995,1763747724513,-500.0,0.00052328,120]
[394596996,1763747724552,-500.0,0.00052328,120]
[394596997,1763747724591,-500.0,0.00052328,120]
[394596998,1763747724630,-500.0,0.00052328,120]
[394596999,1763747724670,-500.0,0.00052328,120]
[394597000,1763747724709,-500.0,0.00052328,120]
[394597001,1763747724747,-617.28631098,0.00052328,120]
[394597002,1763747724786,-503.1,0.00052328,120]
[394597003,1763747724825,-1170.16,0.00052328,120]
[394597004,1763747724864,-500.0,0.00052328,120]
[394597005,1763747724904,-500.0,0.00052328,120]
[394597006,1763747724942,-957.66,0.00052328,120]
[394597007,1763747724985,-500.0,0.00052328,120]
[394597008,1763747725023,-604.0330937,0.00052328,120]
[394597009,1763747725063,-500.0,0.00052328,120]
[394597010,1763747725104,-500.0,0.00052328,120]
[394597011,1763747725145,-500.0,0.00052328,120]
[394597012,1763747725185,-500.0,0.00052328,120]
[394597013,1763747725223,-424.52393073,0.00052328,120]
[394597014,1763747725268,-1000.0,0.00052328,120]
[394597015,1763747725308,-500.0,0.00052328,120]
[394597016,1763747725347,-500.0,0.00052328,120]
[394597017,1763747725388,-500.0,0.00052328,120]
[394597018,1763747725428,-500.0,0.00052328,120]
[394597019,1763747725473,-500.0,0.00052328,120]
[394597020,1763747725519,-500.0,0.00052328,120]
[394597021,1763747725559,-500.0,0.00052328,120]
[394597022,1763747725598,-500.0,0.00052328,120]
[394597023,1763747725637,-300.78703594,0.00052328,120]
[394597024,1763747725675,-416.49757967,0.00052328,120]
[394597025,1763747725712,-500.0,0.00052328,120]
[394597026,1763747725748,-505.17443699,0.00052328,120]
[394597027,1763747725786,-2407.97,0.00052328,120]
[394597028,1763747725826,-500.0,0.00052328,120]
[394597029,1763747725864,-973.1,0.00052328,120]
[394597030,1763747725902,-500.0,0.00052328,120]
[394597031,1763747725940,-500.0,0.00052328,120]
[394597032,1763747725978,-500.0,0.00052328,120]
[394597033,1763747726018,-878.4,0.00052328,120]
[394597034,1763747726288,-500.0,0.00052328,120]
[394597035,1763747726330,-598.80610207,0.00052328,120]
[394597036,1763747726370,-500.0,0.00052328,120]
[394597037,1763747726409,-500.0,0.00052328,120]
[394597038,1763747726448,-500.0,0.00052328,120]
[394597039,1763747726487,-500.0,0.00052328,120]
[394597040,1763747726528,-500.0,0.00052328,120]
[394597041,1763747726568,-500.0,0.00052328,120]
[394597042,1763747726606,-425.93078465,0.00052328,120]
[394597043,1763747726644,-500.0,0.00052328,120]
[394597044,1763747726683,-500.0,0.00052328,120]
[394597045,1763747726722,-500.0,0.00052328,120]
[394597046,1763747726760,-500.0,0.00052328,120]
[394597047,1763747726799,-575.76,0.00052328,120]
[394597048,1763747726837,-500.0,0.00052328,120]
[394597049,1763747726878,-500.0,0.00052328,120]
[394597050,1763747726918,-500.0,0.00052328,120]
[394597051,1763747726957,-873.91,0.00052328,120]
[394597052,1763747726995,-500.0,0.00052328,120]
[394597053,1763747727036,-500.0,0.00052328,120]
[394597054,1763747727074,-500.0,0.00052328,120]
[394597055,1763747727113,-500.0,0.00052328,120]
[394597056,1763747727152,-500.0,0.00052328,120]
[394597057,1763747727190,-500.0,0.00052328,120]
[394597058,1763747727229,-500.0,0.00052328,120]
[394597059,1763747727269,-500.0,0.00052328,120]
[394597060,1763747727308,-1105.99,0.00052328,120]
[394597061,1763747727348,-500.0,0.00052328,120]
[394597062,1763747727390,-500.0,0.00052328,120]
[394597063,1763747727429,-500.0,0.00052328,120]
[394597064,1763747727466,-500.0,0.00052328,120]
[394597065,1763747727510,-407.77626236,0.00052328,120]
[394597066,1763747727554,-403.83588926,0.00052328,120]
[394597067,1763747727595,-500.0,0.00052328,120]
[394597068,1763747727636,-500.0,0.00052328,120]
[394597069,1763747727678,-500.0,0.00052328,120]
[394597070,1763747727720,-845.17,0.00052328,120]
[394597071,1763747727767,-500.0,0.00052328,120]
[394597072,1763747727806,-500.0,0.00052328,120]
[394597073,1763747727845,-500.0,0.00052328,120]
[394597074,1763747727883,-500.0,0.00052328,120]
[394597075,1763747727923,-513.56,0.00052328,120]
[394597076,1763747727963,-298.98556144,0.00052328,120]
[394597077,1763747728005,-542.57032563,0.00052328,120]
[394597078,1763747728047,-500.0,0.00052328,120]
[394597079,1763747728088,-406.69663654,0.00052328,120]
[394597080,1763747728128,-500.0,0.00052328,120]
[394597081,1763747728168,-500.0,0.00052328,120]
[394597082,1763747728209,-500.0,0.00052328,120]
[394597083,1763747728248,-500.0,0.00052328,120]
[394597084,1763747728286,-724.48,0.00052328,120]
[394597085,1763747728332,-500.0,0.00052328,120]
[394597086,1763747728373,-1506.7,0.00052328,60]
[394597087,1763747728413,-500.0,0.00052328,120]
[394597088,1763747728455,-808.43,0.00052328,120]
[394597089,1763747728500,-656.18,0.00052328,120]
[394597090,1763747728542,-929.35,0.00052328,120]
[394597091,1763747728584,-500.0,0.00052328,120]
[394597092,1763747728623,-639.2568222,0.00052328,120]
[394597093,1763747728664,-500.0,0.00052328,120]
[394597094,1763747728705,-523.35824159,0.00052328,120]
[394597095,1763747728744,-690.86,0.00052328,120]
[394597096,1763747728783,-500.0,0.00052328,120]
[394597097,1763747728822,-500.0,0.00052328,120]
[394597098,1763747728862,-500.0,0.00052328,120]
[394597099,1763747728902,-650.71,0.00052328,120]
[394597100,1763747728941,-500.0,0.00052328,120]
[394597101,1763747728987,-500.0,0.00052328,120]
[394597102,1763747729026,-500.0,0.00052328,120]
[394597103,1763747729064,-519.15476003,0.00052328,120]
[394597104,1763747729101,-500.0,0.00052328,120]
[394597105,1763747729138,-500.0,0.00052328,120]
[394597106,1763747729174,-707.79,0.00052328,120]
[394597107,1763747729213,-500.0,0.00052328,120]
[394597108,1763747729251,-550.54860242,0.00052328,120]
[394597109,1763747729291,-500.0,0.00052328,120]
[394597110,1763747729333,-761.86,0.00052328,120]
[394597111,1763747729373,-500.0,0.00052328,120]
[394597112,1763747729415,-984.62,0.00052328,120]
[394597113,1763747729455,-629.18616952,0.00052328,120]
[394597114,1763747729496,-500.0,0.00052328,120]
[394597115,1763747729539,-693.27,0.00052328,120]
[394597116,1763747729588,-500.0,0.00052328,120]
[394597117,1763747729632,-500.0,0.00052328,120]
[394597118,1763747729675,-500.0,0.00052328,30]
[394597119,1763747729717,-412.17792472,0.00052328,120]
[394597120,1763747729761,-500.0,0.00052328,120]
[394597121,1763747729804,-500.0,0.00052328,120]
[394597122,1763747729846,-500.0,0.00052328,120]
[394597123,1763747729889,-1079.48,0.00052328,120]
[394597124,1763747729933,-500.0,0.00052328,120]
[394597125,1763747729973,-500.0,0.00052328,120]
[394597126,1763747730018,-500.0,0.00052328,120]
[394597127,1763747730057,-500.0,0.00052328,120]
[394597128,1763747730094,-500.0,0.00052328,120]
[394597129,1763747730133,-500.0,0.00052328,120]
[394597130,1763747730172,-500.0,0.00052328,120]
[394597131,1763747730210,-453.82562145,0.00052328,120]
[394597132,1763747730252,-553.23,0.00052328,120]
[394597133,1763747730292,-832.22,0.00052328,120]
[394597134,1763747730332,-500.0,0.00052328,120]
[394597135,1763747730372,-906.02,0.00052328,120]
[394597136,1763747730413,-592.29,0.00052328,120]
[394597137,1763747730452,-500.0,0.00052328,120]
[394597138,1763747730749,-405.66397589,0.00052328,120]
[394597139,1763747730790,-500.0,0.00052328,120]
[394597140,1763747730830,-500.0,0.00052328,120]
[394597141,1763747730869,-500.0,0.00052328,120]
[394597142,1763747730910,-500.0,0.00052328,60]
[394597143,1763747730964,-500.0,0.00052328,120]
[394597144,1763747731010,-827.73,0.00052328,30]
[394597145,1763747731051,-500.0,0.00052328,120]
[394597146,1763747731090,-736.06,0.00052328,120]
[394597147,1763747731129,-500.0,0.00052328,120]
[394597148,1763747731172,-500.0,0.00052328,120]
[394597149,1763747731212,-500.0,0.00052328,120]
[394597150,1763747731251,-500.0,0.00052328,120]
[394597151,1763747731291,-1355.84,0.00052328,120]
[394597152,1763747731331,-500.0,0.00052328,120]
[394597153,1763747731371,-500.0,0.00052328,120]
[394597154,1763747731411,-500.0,0.00052328,120]
[394597155,1763747731454,-500.0,0.00052328,120]
[394597156,1763747731496,-500.0,0.00052328,120]
[394597157,1763747731543,-500.0,0.00052328,120]
[394597158,1763747731588,-166.33897675,0.00052328,120]
[394597159,1763747731630,-311.49325776,0.00052328,120]
[394597160,1763747731674,-741.62,0.00052328,120]
[394597161,1763747731715,-500.0,0.00052328,120]
[394597162,1763747731757,-500.0,0.00052328,120]
[394597163,1763747731798,-946.76,0.00052328,120]
[394597164,1763747731837,-500.0,0.00052328,120]
[394597165,1763747731878,-500.0,0.00052328,120]
[394597166,1763747731918,-509.68117742,0.00052328,120]
[394597167,1763747731959,-1462.58,0.00052328,120]
[394597168,1763747731999,-500.0,0.00052328,120]
[394597169,1763747732039,-500.0,0.00052328,120]
[394597170,1763747732081,-1132.61,0.00052328,120]
[394597171,1763747732121,-500.0,0.00052328,120]
[394597172,1763747732159,-500.0,0.00052328,120]
[394597173,1763747732197,-619.63479644,0.00052328,120]
[394597174,1763747732236,-519.9152161,0.00052328,120]
[394597175,1763747732274,-500.0,0.00052328,120]
[394597176,1763747732311,-500.0,0.00052328,120]
[394597177,1763747732348,-500.0,0.00052328,120]
[394597178,1763747732385,-500.0,0.00052328,120]
[394597179,1763747732429,-500.0,0.00052328,120]
[394597180,1763747732473,-500.0,0.00052328,120]
[394597181,1763747732516,-500.0,0.00052328,30]
[394597182,1763747732557,-372.79225544,0.00052328,120]
[394597183,1763747732596,-1342.9,0.00052328,120]
[394597184,1763747732638,-720.54,0.00052328,120]
[394597185,1763747732678,-500.0,0.00052328,120]
[394597186,1763747732716,-500.0,0.00052328,120]
[394597187,1763747732755,-500.0,0.00052328,120]
[394597188,1763747732794,-500.0,0.00052328,120]
[394597189,1763747732836,-500.0,0.00052328,120]
[394597190,1763747732876,-435.23376512,0.00052328,120]
[394597191,1763747732917,-500.0,0.00052328,120]
[394597192,1763747732957,-500.0,0.00052328,120]
[394597193,1763747732997,-500.0,0.00052328,120]
[394597194,1763747733042,-500.0,0.00052328,120]
[394597195,1763747733082,-727.09,0.00052328,120]
[394597196,1763747733124,-306.14730419,0.00052328,120]
[394597197,1763747733167,-555.3753549,0.00052328,120]
[394597198,1763747733207,-500.0,0.00052328,120]
[394597199,1763747733248,-500.0,0.00052328,120]
[394597200,1763747733289,-819.94,0.00052328,120]
[394597201,1763747733328,-500.0,0.00052328,120]
[394597202,1763747733372,-1000.0,0.00052328,120]
[394597203,1763747733413,-500.0,0.00052328,120]
[394597204,1763747733455,-515.99646372,0.00052328,120]
[394597205,1763747733500,-1107.01,0.00052328,120]
[394597206,1763747733547,-855.69,0.00052328,120]
[394597207,1763747733588,-500.0,0.00052328,120]
[394597208,1763747733629,-500.0,0.00052328,120]
[394597209,1763747733672,-633.93141697,0.00052328,120]
[394597210,1763747733717,-769.88,0.00052328,120]